Cogmind - Beta 14 @@@ ROGUE MODE // 2024.11.10 @ 12:55:10 Player: Hachimocho Result: Destroyed by G-47 Trooper with Particle Gun Performance ------------- Evolutions (2) 1000 Regions Visited (3) 600 Robots Destroyed (98) 490 Value Destroyed (1591) 1591 Prototype IDs (3) 60 Alien Tech Used (0) 0 Bonus (0) 0 TOTAL SCORE: 3741 Bonus ------- None Cogmind --------- Core Integrity 0/550 Matter 300/300 Energy 95/100 System Corruption 0% Temperature Cool (9) Movement Core (50) Location -8/Materials Parts ------- > --- POWER (1) -------- (None) > --- PROPULSION (2) --- (None) > --- UTILITY (4) ------ (None) > --- WEAPON (4) ------- Heavy Hammer > --- INVENTORY (5) ---- (None) Peak State ------------ > --- POWER ------------ Subdweller Power Source > --- PROPULSION ------- Light Treads Light Treads > --- UTILITY ---------- Scrap Shield Shield Generator > --- WEAPON ----------- Subdweller Beam Cannon Battle Cannon Heavy Hammer > --- INVENTORY -------- Advanced Beam Cannon Minigun Heavy Hammer Heavy Hammer Heavy Hammer [Rating: 17] Favorites ----------- Power Light Nuclear Core Engine Ion Engine Power Core Light Nuclear Core Propulsion Light Treads Treads Light Treads Utility Improved Terrain Scanner Device Improved Terrain Scanner Storage Medium Matter Pod Protection Scrap Shield Weapon Heavy Hammer Energy Gun Particle Gun Energy Cannon Subdweller Beam Cannon Ballistic Gun Light Assault Rifle Ballistic Cannon Battle Cannon Special Weapon Mining Laser Impact Weapon Heavy Hammer Slashing Weapon Mining Claw Build | -11 -10 -10 -8 ------- Run | Yrd Mat Sub Mat Slots Evolved 4 | . . . 4 Power . | . . . . Propulsion . | . . . . Utility 2 | . . . 2 Weapon 2 | . . . 2 Parts Attached 38 | 9 15 3 11 Power 6 | 2 2 1 1 Engine 4 | 2 . 1 1 Core 2 | . 2 . . Reactor . | . . . . Propulsion 8 | 2 4 . 2 Treads 8 | 2 4 . 2 Leg . | . . . . Wheel . | . . . . Hover . | . . . . Flight . | . . . . Utility 8 | 3 1 1 3 Device 3 | 1 1 . 1 Storage 2 | 2 . . . Processor . | . . . . Hackware . | . . . . Protection 3 | . . 1 2 Artifact . | . . . . Weapon 16 | 2 8 1 5 Energy Gun 3 | 1 2 . . Energy Cannon 2 | . . 1 1 Ballistic Gun 4 | 1 2 . 1 Ballistic Cannon 1 | . . . 1 Launcher . | . . . . Special Weapon 1 | . 1 . . Impact Weapon 4 | . 2 . 2 Slashing Weapon 1 | . 1 . . Piercing Weapon . | . . . . Special Melee Weapon . | . . . . Unidentified Prototypes 1 | . . . 1 Parts Lost 18 | . 2 . 16 Power 2 | . . . 2 Propulsion 4 | . . . 4 Utility 3 | . . . 3 Weapon 9 | . 2 . 7 Highest Loss Streak 8 | . 2 . 8 To Critical Strikes . | . . . . Average Slot Usage (%) 87 | . 99 85 48 Engine 5 | . 4 9 7 Core 7 | . 9 4 . Treads 23 | . 27 28 7 Device 15 | . 21 . 3 Storage 4 | . 6 . . Protection 2 | . . 13 6 Energy Gun 8 | . 11 4 . Energy Cannon 2 | . . 9 7 Ballistic Gun 4 | . 5 . . Impact Weapon 9 | . 7 14 13 Slashing Weapon 1 | . 1 . . Peak Build Rating 17 | 9 15 15 17 Average Rating 11 | 8 12 13 12 On Entrance 9 | . 9 14 13 Naked Turns 5 | . . . 5 Heaviest Build 39 | 12 14 34 39 Greatest Support 46 | 40 40 40 46 Greatest Overweight (x) 10 | . 2 . 10 Average Overweight (x) . | . . . 1 Largest Inventory Capacity 8 | 8 5 5 5 Average Capacity 5 | 5 5 5 5 Most Carried 7 | 7 5 5 5 Average Carried 4 | 3 4 4 2 Final Capacity 5 | 5 5 5 5 Final Carried 5 | 4 5 5 . Class Distribution -------------------- 80% | Mutant 11% | Subdweller-Mutant 7% | Scavenger-Mutant Dominant Class ---------------- Mutant | -10/Materials Subdweller-Mutant | -10/Subcaves Mutant | -8/Materials Resources | -11 -10 -10 -8 ----------- Run | Yrd Mat Sub Mat Matter Collected 926 | 408 339 30 149 Remotely . | . . . . Salvage Created 2830 | 368 1651 42 769 Parts 148 | 31 104 1 12 Haulers Intercepted 3 | . 2 . 1 Recyclers Shooed 7 | 1 5 . 1 Parts Field Recycled . | . . . . Retrieved Matter . | . . . . Parts Self-Destructed 4 | . . 4 . Prevented . | . . . . Kills | -11 -10 -10 -8 ------- Run | Yrd Mat Sub Mat Combat Hostiles Destroyed 24 | . 11 1 12 Melee 11 | . 5 . 6 Guns 5 | . 4 1 . Classes Destroyed 10 | 3 6 1 . Worker 26 | 4 21 . 1 Builder 18 | . 16 . 2 Tunneler 13 | 9 4 . . Hauler 3 | . 2 . 1 Recycler 9 | 1 5 . 3 Mechanic 1 | . 1 . . Watcher 5 | . 3 . 2 Swarmer 5 | . 2 . 3 Grunt 18 | . 9 . 9 Subdweller 1 | . . 1 . Best Kill Streak 7 | 2 7 1 4 Combat Bots Only 4 | . 2 1 4 Max Kills in Single Turn 1 | 1 1 1 1 Gunslinging . | . . . . Exploded . | . . . . Melee 1 | . 1 . 1 Uniques/NPCs Destroyed . | . . . . Combat | -11 -10 -10 -8 -------- Run | Yrd Mat Sub Mat Hostile Shots Fired 285 | . 83 3 199 Missed 80 | . 27 2 51 Damage Taken 3115 | 37 681 46 2351 Core 723 | . 171 . 552 Absorbed by Shields 65 | . 36 . 29 Regen/Repaired (Parts) 220 | . 220 . . Core Remaining (%) 65 | 100 . 31 . Volleys Fired 238 | 31 186 8 13 Largest 2 | 2 2 1 2 Hottest 140 | 60 140 65 119 Shots Fired 393 | 62 307 8 16 Gun 378 | 62 302 8 6 Cannon 10 | . . . 10 Launcher . | . . . . Special 5 | . 5 . . Kinetic 243 | 31 199 . 13 Thermal 110 | . 99 8 3 Explosive . | . . . . Electromagnetic 40 | 31 9 . . Robot Hit Streak 15 | 7 15 6 2 Robot Miss Streak 7 | 3 7 1 2 Penetration Max . | . . . . Secondary Targets 2 | . 2 . . Max Gunslinging Chain 1 | . 1 . . Shots Hit Robots 297 | 37 202 7 51 Core Hits 107 | 20 75 4 8 Critical Kills 1 | . . . 1 Critical Parts Destroyed 17 | . 6 . 11 Critical Strikes 22 | 2 8 . 12 Burn 2 | . 2 . . Destroy 1 | . 1 . . Corrupt 2 | 2 . . . Smash 17 | . 5 . 12 Melee Attacks 164 | . 89 3 72 Impact 151 | . 76 3 72 Slashing 13 | . 13 . . Piercing . | . . . . Sneak Attacks 28 | . 19 . 9 Combat Hostiles . | . . . . Follow-up Attacks 3 | . . . 3 Damage Inflicted 6623 | 427 3856 103 2237 Guns 2192 | 400 1605 103 84 Cannons 116 | . . . 116 Explosions 115 | 27 88 . . Melee 4198 | . 2161 . 2037 Ramming 2 | . 2 . . Kinetic 1309 | 138 1001 . 170 Thermal 749 | 27 589 103 30 Explosive 88 | . 88 . . Electromagnetic 277 | 262 15 . . Impact 4126 | . 2089 . 2037 Slashing 72 | . 72 . . Piercing . | . . . . Highest Corruption . | . . . . Average Corruption . | . . . . Corruption Purged . | . . . . Corruption Blocked . | . . . . Overload Shots . | . . . . Overflow Damage 1809 | . 904 . 905 Projectiles 3 | . . . 3 Explosions 44 | . 44 . . Melee 1762 | . 860 . 902 Knockbacks 17 | . 8 . 9 Impact 17 | . 8 . 9 Kinetic . | . . . . Secondary . | . . . . Self-Inflicted Damage 110 | 37 73 . . Shots 2 | 1 1 . . Rammed 1 | . 1 . . Targets Rammed 1 | . 1 . . Kicked . | . . . . Crushed . | . . . . Highest Temperature 224 | 40 224 . 72 Average Temperature 47 | 16 54 . 19 Received Heat Transfer 1699 | . 319 6 1374 Siege Activations . | . . . . Robots Corrupted 19 | . 11 . 8 Combat Hostiles 8 | . 2 . 6 Parts Fried 44 | . 22 . 22 Impact Corruptions 57 | . 32 . 25 Robots Melted . | . . . . Combat Hostiles . | . . . . Parts Melted 2 | . . 2 . Heat Transferred 1850 | . 1554 259 37 Parts Sabotaged . | . . . . Parts Stolen . | . . . . Parts Stripped . | . . . . Power Chain Reactions 1 | 1 . . . Alert | -11 -10 -10 -8 ------- Run | Yrd Mat Sub Mat Peak Influence 536 | 50 536 . 359 Initial 134 | . 13 . 134 Average 193 | 19 235 . 216 Maximum Alert Level 2 | . 2 . 1 Low Security (%) 63 | 100 54 . 56 Level 1 20 | . 19 . 43 Level 2 16 | . 26 . . Level 3 . | . . . . Level 4 . | . . . . Level 5 . | . . . . High Security . | . . . . Max Security . | . . . . Squads Dispatched 3 | . . . 3 Investigation 1 | . . . 1 Extermination . | . . . . Reinforcement . | . . . . Assault . | . . . . Garrison 2 | . . . 2 Intercept . | . . . . Searches Triggered . | . . . . Construction Impeded . | . . . . Haulers Reinforced . | . . . . Active Scanning Responses . | . . . . Cargo Convoy Interrupts . | . . . . Stealth | -11 -10 -10 -8 --------- Run | Yrd Mat Sub Mat Distress Signals 4 | . 1 . 3 Communications Jammed . | . . . . Distress Signals . | . . . . Times Spotted 55 | . 22 9 24 Peak Tracking Total 7 | . 3 5 7 Tactical Retreats 2 | . 1 . 1 Traps | -11 -10 -10 -8 ------- Run | Yrd Mat Sub Mat Traps Triggered 2 | . 1 . 1 Indirectly . | . . . . Trap Hack Attempts . | . . . . Triggered . | . . . . Disarmed 6 | . 6 . . Reprogrammed . | . . . . Reused . | . . . . Traps Extracted . | . . . . Installed . | . . . . Triggered . | . . . . Machines | -11 -10 -10 -8 ---------- Run | Yrd Mat Sub Mat Machines Disabled 38 | . 32 . 6 Max in Single Turn 2 | . 2 . 1 Machines Repaired . | . . . . Machines Dismantled . | . . . . Machines Sabotaged . | . . . . Overloaded Fab Kills . | . . . . Hacking | -11 -10 -10 -8 --------- Run | Yrd Mat Sub Mat Machines Accessed 11 | . 9 . 2 Terminals 8 | . 7 . 1 Fabricators . | . . . . Repair Stations 1 | . 1 . . Recycling Units 1 | . 1 . . Scanalyzers 1 | . . . 1 Garrison Access . | . . . . Total Hacks 31 | . 25 . 6 Successful 22 | . 19 . 3 Failed 9 | . 6 . 3 Catastrophic 2 | . 1 . 1 Database Lockouts . | . . . . Manual 9 | . 6 . 3 Terminals 24 | . 20 . 4 Fabricators . | . . . . Repair Stations 4 | . 4 . . Recycling Units 1 | . 1 . . Scanalyzers 2 | . . . 2 Garrison Access . | . . . . Terminal Hacks 15 | . 14 . 1 Robot Analysis 1 | . 1 . . Prototype ID Bank 1 | . 1 . . Branch Access Points 1 | . 1 . . Alert Level 2 | . 2 . . Locate Traps 2 | . 1 . 1 Disarm Traps 1 | . 1 . . Dispatch Records 1 | . 1 . . Security Status 1 | . 1 . . Patrol Status 1 | . 1 . . Investigation Status 1 | . 1 . . Assault Status 1 | . 1 . . Zone Layout 2 | . 2 . . Fabricator Hacks . | . . . . Repair Station Hacks 4 | . 4 . . Scan Component 2 | . 2 . . Repair 2 | . 2 . . Recycling Unit Hacks 1 | . 1 . . Retrieve Components 1 | . 1 . . Scanalyzer 2 | . . . 2 Insert Component 1 | . . . 1 Analyze 1 | . . . 1 Garrison Access Hacks . | . . . . Unauthorized Hacks . | . . . . Terminals . | . . . . Fabricators . | . . . . Repair Stations . | . . . . Recycling Units . | . . . . Scanalyzers . | . . . . Garrison Access . | . . . . Data Cores Recovered . | . . . . Used . | . . . . Hacking Detections 7 | . 6 . 1 Full Trace Events 2 | . 1 . 1 Feedback Events . | . . . . Feedback Blocked . | . . . . Robot Schematics Acquired . | . . . . Robots Built . | . . . . Authchips . | . . . . Time . | . . . . Total Robot Build Rating . | . . . . Part Schematics Acquired 1 | . . . 1 Parts Built . | . . . . Authchips . | . . . . Time . | . . . . Total Part Build Rating . | . . . . Parts Repaired 2 | . 2 . . Time 52 | . 52 . . Parts Recycled . | . . . . Recycled Matter . | . . . . Retrieved Matter . | . . . . Retrieved Components 10 | . 10 . . Parts Scanalyzed 1 | . . . 1 Part Schematics Acquired 1 | . . . 1 Parts Damaged 1 | . . . 1 Bothacking | -11 -10 -10 -8 ------------ Run | Yrd Mat Sub Mat Used RIF Installer . | . . . . Robots Hacked . | . . . . Non-combat . | . . . . Combat . | . . . . Robot Hacks Applied . | . . . . Relay Couplers Released . | . . . . Fabnet Peak Effective % . | . . . . Robots Rewired . | . . . . Allies Hacked . | . . . . Hacks Repelled . | . . . . Allies | -11 -10 -10 -8 -------- Run | Yrd Mat Sub Mat Total Allies . | . . . . Largest Group . | . . . . Highest-Rated Group . | . . . . Highest-Rated Ally . | . . . . Total Orders . | . . . . Ally Attacks . | . . . . Total Damage . | . . . . Kills . | . . . . Allies Corrupted . | . . . . Allies Melted . | . . . . Intel | -11 -10 -10 -8 ------- Run | Yrd Mat Sub Mat Robot Analysis Total 1 | . 1 . . Derelict Logs Recovered . | . . . . Drone Launches . | . . . . Drone Recoveries . | . . . . Exploration | -11 -10 -10 -8 ------------- Run | Yrd Mat Sub Mat Turns Passed 4307 | 714 2499 384 710 Spaces Moved 1900 | 379 1057 209 255 Core 142 | 3 2 . 137 Treads 1758 | 376 1055 209 118 Legs . | . . . . Wheels . | . . . . Hover . | . . . . Flight . | . . . . Fastest Speed 50 | 50 150 160 50 Average Speed 163 | 159 159 160 186 Slowest Speed 550 | 160 160 160 550 Overloaded Moves . | . . . . Propulsion Burnouts . | . . . . Robots Hopped . | . . . . Cave-ins Triggered . | . . . . Exploration Rate (%) 34 | 14 78 20 24 Regions Visited 3 Branch Regions 1 Pre-discovered Areas . | . . . . Known Exits Taken . | . . . . Unknown Exits Taken 3 | 1 1 1 . Scrap Searched . | . . . . Spaces Dug 6 | . 6 . . Terrain Destroyed 113 | 3 106 . 4 Melee 6 | . 6 . . Projectile 4 | . . . 4 AOE 103 | 3 100 . . Terrain Rammed . | . . . . Walls Destroyed . | . . . . Machines Disabled . | . . . . Actions | -11 -10 -10 -8 --------- Run | Yrd Mat Sub Mat Total 2474 | 435 1431 248 360 Wait 71 | . 54 12 5 Move 1897 | 378 1056 208 255 Hop . | . . . . Pick Up 47 | 14 19 6 8 Fast Attach . | . . . . Attach 28 | 7 8 1 12 Detach . | . . . . Swap 11 | 2 7 2 . Drop 22 | 3 11 7 1 Fire 238 | 31 186 8 13 Melee 158 | . 89 3 66 Ram . | . . . . Kick . | . . . . Crush 1 | . 1 . . Escape Stasis . | . . . . Rewire . | . . . . Trap . | . . . . Miscellaneous 1 | . . 1 . Route ------- -11/Scrapyard -10/Materials (discovered 6 exits: [*Mat x3] / *Min x2 / [*Sub]) -10/Subcaves (discovered 2 exits: *Mat x2) -8/Materials History --------- Turn | Location | Event 48 | -11/Scrapyard | Discovered new exit (range 15) 715 | -11/Scrapyard | Entered Materials 716 | -10/Materials | Build established: Mutant 1367 | -10/Materials | Identified exit to Mines 1409 | -10/Materials | Discovered new exit (range 15) 1455 | -10/Materials | Core integrity fell below 50% 1536 | -10/Materials | Repaired Lgt. Treads 1568 | -10/Materials | Repaired Lgt. Treads 1784 | -10/Materials | Build established: Scavenger-Mutant 1863 | -10/Materials | Discovered new exit (range 15) 1990 | -10/Materials | Discovered new exit (range 14) 2115 | -10/Materials | Build established: Mutant 2622 | -10/Materials | Discovered new exit (range 10) 3214 | -10/Materials | Entered Subcaves 3298 | -10/Subcaves | Ambushed by swarm of Subdwellers 3351 | -10/Subcaves | Ambushed by Subdwellers from Twisted Machinery 3492 | -10/Subcaves | Discovered new exit (range 8) 3574 | -10/Subcaves | Discovered new exit (range 9) 3598 | -10/Subcaves | Entered Materials 3598 | -8/Materials | Evolved 4 slots: Utility x2, Weapon x2 3620 | -8/Materials | Build established: Subdweller-Mutant 3897 | -8/Materials | Lost 8 parts (1p2n2u3w) 3942 | -8/Materials | Core integrity fell below 50% 4134 | -8/Materials | Build established: Mutant 4183 | -8/Materials | Garrison activated, responded to threat 4302 | -8/Materials | Core integrity fell below 20% 4308 | -8/Materials | Destroyed by G-47 Trooper with Particle Gun Last Messages --------------- 04271_ W-25 Informer destroyed. 04272_ Deuterium Engine destroyed. 04272_ Critical hit (Burn: +37). 04279_ Hvy. Hammer follow-up attack on G-47 Trooper. 04279_ G-47 Trooper knocked back. 04280_ K-01 Serf cleans the Integration Channel. 04283_ G-47 Trooper emerges from the garrison. 04283_ Integration Channel disabled. 04285_ Critical hit (Burn: +37). 04287_ Adv. Beam Cannon destroyed. 04288_ G-47 Trooper knocked back. 04300_ Imp. Treads destroyed. 04300_ Hrd. Medium Armor Plating destroyed. 04302_ Critical hit (Burn: +37). 04304_ Imp. Treads destroyed. 04305_ L-31 Rogue knocked back. 04305_ Hvy. Hammer destroyed. 04306_ Critical hit (Burn: +37). Map ----- +----------------------------------------------------+ | ##???????????????????????????????????????????????? | | ?????????????????????????????????????????????????? | | ?????????????????????????????????????????????????? | | ######???????????????????????????????????????????? | | #???????????????????????????????????????????? | | #???????????????????????????????????????????? | | #???????????????????????????????????????????? | | #???????????????????????????????????????????? | | #???????????????????????????????????????????? | | #???????????????????????????????????????????? | | ###+##???????????????????????????????????????????? | | ?????????????????????????????????????????????????? | | ?????????????????????????????????????????????????? | | ?????????????????????????????????????????????????? | | ?????#???#######?????????????????????????????????? | | ???? ??? ??????????????????????????????????? | | ???? ???? ??????????????????????????????????? | | ??? ????? ??????????????????????????????????? | | ###+####### #????????####??????????????????????? | | ! ## #?#??????T" #??????????????????????? | | [=## #?# ???? #??????????????????????? | | *=[## #??! ?? ???????????????????????? | | """""%"%## #???? !* ???????? #???????????????? | | """""""=## k#######;######## ###?????????????? | | %"""""""%##% g % ! #?????????????? | | """""""%+!=[ l@ g #?????????????? | | """""""%##* [== m #?????????????? | | ############# [ = g ??????????? | | ????????????# [ = """ """ ?????????? | | ????????????# gg" """"""" ?????????? | | ????????????# """"" ??####??????????? | | ??????????? ????????????????? | | ????????? ????????????????? | | ???????? ??????????????????? | | ???????+######+### #" "######??????????????????? | | ?????????????????# #"G"#???????????????????????? | | ?????????????????# #"""#???????????????????????? | | ?????????????????# ###?????????????????????????? | | ?????????????????# #???????????????????????????? | | ?????????????????# #???????????????????????????? | | ?????????????????? #???????????????????????????? | | ?????????????????? +???????????????????????????? | | ???????????????????? ????????????????????????????? | | ?????????????????????????????????????????????????? | | ?????????????????????????????????????????????????? | | ?????????????????????????????????????????????????? | | ?????????????????????????????????????????????????? | | ?????????????????????????????????????????????????? | | ?????????????????????????????????????????????????? | | ?????????????????????????????????????????????????? | +----------------------------------------------------+ Best States ------------- Heat Dissipation 31 Energy Generation 15 Energy Capacity 275 Matter Stores 400 Matter Capacity 400 Sight Range 16 Terrain Scan Range 16 Terrain Scan Density 10 Armor Coverage 800 Evasion (%) 50 Recoil Reduction 2 Item Schematics ----------------- Hvy. Hammer | -8/Materials | Scanalyzed Robot Schematics ------------------ None Fabricated ------------ Nothing Alien Tech Used ----------------- None Achievements -------------- None Challenges ------------ None Game ------ Seed BoreInsulatedDerivative Manual? 0 Play Time 00:47:03 Cumulative 9.9 hours Start 2024.11.10 @ 12:09:39 End 2024.11.10 @ 12:55:10 Sessions 1 Manual Loads 0 Difficulty Rogue Special Mode None Game No. 15 Rogue 15 Adventurer 0 Explorer 0 Win Type - Total 0 Types 0/0/0/0/0/0/0/0/0 Lore% 9 Gallery% 15 Achievement% 15 Wizard Run 0 Options --------- Layout 1 ASCII 0 Keyboard 0 Movement Numpad Keybinds 0 Fullscreen 1 Font 32/SmallcapsGlow Map View 50x40 Zoom Use 0% Tactical HUD 1 Map Filters NONE Filters NONE Steam 1 RUN: 206e0510-9c8c-491b-b6e3-f57116e4d5d2